bitfinex/quotes_SOLUSD_20240824
["timestamp","ask_amount","ask_price","bid_price","bid_amount"]
[1724496338255,28.3505,158.93,158.84,9.80792032]
[1724496339359,22.0584,158.93,158.85,1.25888264]
[1724496343060,22.0584,158.93,158.86,9.80792032]
[1724496344265,22.0584,158.93,158.82,1.25883538]
[1724496344467,22.0584,158.93,158.85,9.80792032]
[1724496344671,22.0584,158.93,158.86,1.25883478]
[1724496345768,0.8537466,158.95,158.89,9.80792032]
[1724496346072,0.8537466,158.95,158.91,9.80792032]
[1724496346448,0.8537466,158.95,158.9,9.80792032]
[1724496347643,0.8537466,158.95,158.91,0.12549]
[1724496347838,0.8537466,158.95,158.86,16.1584]
[1724496348064,0.8537466,158.95,158.89,9.80792032]
[1724496350149,0.8537466,158.95,158.89,9.80792032]
[1724496350561,0.8537466,158.95,158.86,16.1584]
[1724496350877,0.8537466,158.95,158.86,9.80792032]
[1724496351376,6.2932,158.91,158.8,6.4631]
[1724496351559,6.2932,158.91,158.82,9.80792032]
[1724496352775,6.5516,158.9,158.75,6.4631]
[1724496352974,6.2941,158.88,158.81,9.80792032]
[1724496353850,0.12549,158.89,158.81,9.80792032]
[1724496354052,71.41929,158.89,158.81,9.80792032]
[1724496354375,71.41929,158.89,158.75,6.4631]
[1724496354376,65.12549,158.89,158.75,6.4631]
[1724496354584,6.2944,158.87,158.81,9.80792032]
[1724496354759,6.5516,158.9,158.81,9.80792032]
[1724496355276,6.5516,158.9,158.83,9.80792032]
[1724496355777,6.5516,158.9,158.84,1.25900802]
[1724496356078,12.8448,158.9,158.83,9.80792032]
[1724496360257,6.5516,158.9,158.75,6.4631]
[1724496360478,6.5516,158.9,158.81,9.80792032]
[1724496361072,6.5516,158.9,158.83,9.80792032]
[1724496362377,6.2937,158.89,158.82,9.80792032]
[1724496362768,6.5516,158.9,158.83,1.25908166]
[1724496363083,6.5516,158.9,158.84,9.80792032]
[1724496364273,6.5516,158.9,158.85,1.25886539]
[1724496364666,6.5516,158.9,158.84,9.80792032]
[1724496367370,6.5516,158.9,158.85,1.25896048]
[1724496368390,22.6622,158.92,158.85,1.25896048]
[1724496368694,16.3697,158.92,158.86,9.80792032]
[1724496369169,16.3697,158.92,158.8,54.48628128]
[1724496369369,22.6621,158.92,158.86,9.80792032]
[1724496370403,22.6621,158.92,158.81,45.25098]
[1724496370566,22.6621,158.92,158.84,9.80792032]
[1724496370895,22.6621,158.92,158.85,1.25884415]
[1724496371081,22.6621,158.92,158.84,9.80792032]
[1724496372166,6.293,158.91,158.84,9.80792032]
[1724496373777,22.6622,158.92,158.84,9.80792032]
[1724496374667,6.2929,158.91,158.81,45.25098]
[1724496374885,6.2929,158.91,158.83,9.80792032]
[1724496375467,16.3697,158.92,158.87,9.80792032]
[1724496376278,16.3697,158.92,158.83,3.56323372]
[1724496376279,16.3697,158.92,158.85,9.80792032]
[1724496376790,22.6621,158.92,158.85,9.80792032]
[1724496377162,6.2929,158.91,158.82,3.56232412]
[1724496377397,6.2929,158.91,158.83,9.80792032]
[1724496378076,22.6621,158.92,158.84,1.25892847]
[1724496379370,22.6621,158.92,158.83,9.80792032]
[1724496379571,16.3697,158.92,158.87,9.80792032]
[1724496380880,16.3697,158.92,158.81,45.12549]
[1724496381087,16.3697,158.92,158.84,9.80792032]
[1724496381679,16.3697,158.92,158.82,0.12549]
[1724496381879,16.3697,158.92,158.84,9.80792032]
[1724496382094,16.3697,158.92,158.85,1.25881467]
[1724496382294,16.3697,158.92,158.84,9.80792032]
[1724496382486,16.3697,158.92,158.85,0.12549]
[1724496383908,16.3697,158.92,158.86,1.57581841]
[1724496384076,16.3697,158.92,158.87,1.57581841]
[1724496384281,16.3697,158.92,158.85,0.12549]
[1724496384687,16.3697,158.92,158.86,1.57591137]
[1724496384894,16.3697,158.92,158.84,9.80792032]
[1724496385084,16.3697,158.92,158.85,1.57591156]
[1724496385286,16.3697,158.92,158.86,1.57591156]
[1724496385487,22.6625,158.92,158.8,15.2546]
[1724496385685,6.2929,158.91,158.82,9.80792032]
[1724496386083,6.2929,158.91,158.83,1.57611706]
[1724496386282,6.2929,158.91,158.84,1.57611706]
[1724496386483,6.2932,158.9,158.82,9.80792032]
[1724496386684,16.3697,158.92,158.84,9.80792032]
[1724496386685,22.6624,158.92,158.84,9.80792032]
[1724496387000,6.293,158.91,158.84,9.80792032]
[1724496387810,26.17762032,158.92,158.84,9.80792032]
[1724496387811,6.2933,158.9,158.84,9.80792032]
[1724496388389,16.3697,158.92,158.77,22.0067]
[1724496388601,71.29159,158.91,158.82,9.80792032]
[1724496388796,6.2937,158.89,158.82,9.80792032]
[1724496389203,6.2937,158.89,158.83,1.57618513]
[1724496389408,6.2937,158.89,158.84,1.57618513]
[1724496389607,6.2933,158.9,158.82,9.80792032]
[1724496389909,6.2933,158.9,158.83,1.57611099]
[1724496390085,6.2933,158.9,158.84,1.57611099]
[1724496390279,6.2933,158.9,158.82,9.80792032]
[1724496390481,51.29159,158.91,158.82,9.80792032]
[1724496390482,6.2937,158.89,158.83,1.57611836]
[1724496390681,6.2937,158.89,158.84,1.57611836]
[1724496390911,6.2937,158.89,158.82,9.80792032]
[1724496391097,6.2937,158.89,158.83,1.57611817]
[1724496391293,6.2937,158.89,158.84,1.57611817]
[1724496391498,6.2937,158.89,158.77,22.0067]
[1724496391707,6.2937,158.89,158.81,9.80792032]
[1724496392014,6.2937,158.89,158.82,1.57611873]
[1724496392192,6.2937,158.89,158.83,1.57611873]
[1724496392392,6.2941,158.88,158.84,1.57611873]
[1724496392596,6.2941,158.88,158.81,9.80792032]
[1724496392793,6.2941,158.88,158.82,1.57611999]
[1724496392993,6.2941,158.88,158.83,1.57611999]
[1724496393205,6.2941,158.88,158.84,1.57611999]
[1724496393407,6.2941,158.88,158.82,1.25917813]
[1724496393606,6.2941,158.88,158.83,1.57611943]
[1724496393814,6.2941,158.88,158.84,1.57611943]
[1724496394009,6.2941,158.88,158.82,1.25917813]
[1724496394188,6.2941,158.88,158.83,1.57611833]
[1724496394396,12.4591,158.91,158.84,1.57611833]
[1724496394593,12.4591,158.91,158.83,9.80792032]
[1724496394794,12.4591,158.91,158.84,1.57610617]
[1724496395013,12.4591,158.91,158.83,9.80792032]
[1724496395212,12.4591,158.91,158.84,1.57610918]
[1724496395415,12.4591,158.91,158.85,1.57610918]
[1724496395619,12.4591,158.91,158.83,9.80792032]
[1724496395788,12.4591,158.91,158.84,1.57611007]
[1724496395989,12.4591,158.91,158.85,1.57611007]
[1724496396190,12.4591,158.91,158.83,9.80792032]
[1724496396389,12.4591,158.91,158.84,1.57610706]
[1724496396695,12.4591,158.91,158.85,1.57610706]
[1724496396895,12.4591,158.91,158.83,9.80792032]
[1724496397221,6.2933,158.9,158.84,1.57610865]
[1724496397512,6.2933,158.9,158.85,1.57610865]
[1724496397708,6.2933,158.9,158.83,9.80792032]
[1724496397906,6.2933,158.9,158.84,1.57610956]
[1724496398211,6.2933,158.9,158.83,9.80792032]
[1724496398393,6.1661,158.91,158.84,1.57610937]
[1724496398598,6.1661,158.91,158.85,1.57610937]
[1724496398799,12.4593,158.91,158.78,1.50983653]
[1724496399001,6.2932,158.9,158.83,9.80792032]
[1724496399203,6.2932,158.9,158.84,1.57600152]
[1724496399515,6.2932,158.9,158.85,1.57600152]
[1724496399816,6.2932,158.9,158.83,9.80792032]
[1724496399999,6.2932,158.9,158.84,1.57611784]
[1724496400204,6.2932,158.9,158.85,1.57611784]
[1724496400516,6.2937,158.89,158.82,9.80792032]
[1724496400690,6.1661,158.91,158.83,1.57610918]
[1724496400890,6.1661,158.91,158.84,11.3840295]
[1724496401110,6.1661,158.91,158.85,1.57610918]
[1724496401416,6.1661,158.91,158.86,1.57598742]
[1724496401621,6.1661,158.91,158.87,1.57598742]
[1724496401803,6.1661,158.91,158.84,9.80792032]
[1724496402114,6.1661,158.91,158.85,2.83479574]
[1724496402319,6.1661,158.91,158.86,1.57596221]
[1724496402504,6.1661,158.91,158.87,1.57596221]
[1724496402702,6.1661,158.91,158.84,9.80792032]
[1724496403026,6.1661,158.91,158.85,1.57595899]
[1724496403197,6.1661,158.91,158.86,1.57595899]
[1724496403396,6.1661,158.91,158.87,1.57595899]
[1724496403611,6.1661,158.91,158.84,9.80792032]
[1724496403816,6.1661,158.91,158.85,1.57595956]
[1724496404114,6.1661,158.91,158.86,1.57595956]
[1724496404314,6.1661,158.91,158.87,1.57595956]
[1724496404494,6.1661,158.91,158.86,9.80792032]
[1724496404895,6.1661,158.91,158.87,1.57579544]
[1724496405120,6.1661,158.91,158.88,1.57579544]
[1724496405322,6.1661,158.91,158.89,1.57579544]
[1724496405519,6.1661,158.91,158.86,9.80792032]
[1724496405696,6.1661,158.91,158.87,1.57574389]
[1724496405896,6.1661,158.91,158.88,1.57574389]
[1724496406103,6.1661,158.91,158.89,1.57574389]
[1724496406344,6.1661,158.91,158.86,9.80792032]
[1724496406522,6.1661,158.91,158.87,1.57573455]
[1724496406726,6.1661,158.91,158.88,1.57573455]
[1724496406925,6.1661,158.91,158.86,9.80792032]
[1724496407127,6.1661,158.91,158.87,1.57579263]
[1724496407414,6.1661,158.91,158.88,1.57579263]
[1724496407620,6.1661,158.91,158.86,9.80792032]
[1724496407926,16.3697,158.92,158.87,1.57584269]
[1724496408418,6.1936,158.94,158.88,9.80792032]
[1724496408724,6.1936,158.94,158.89,1.57584269]
[1724496408926,6.1936,158.94,158.88,9.80792032]
[1724496409101,6.1936,158.94,158.89,1.57574244]
[1724496409302,6.1936,158.94,158.88,9.80792032]
[1724496409495,6.1936,158.94,158.89,1.57574244]
[1724496409695,6.1936,158.94,158.88,9.80792032]
[1724496409912,6.1936,158.94,158.89,1.57573493]
[1724496410113,6.1936,158.94,158.88,9.80792032]
[1724496410319,6.1936,158.94,158.89,1.57573475]
[1724496410522,6.1936,158.94,158.88,9.80792032]
[1724496410706,6.1936,158.94,158.89,1.57573367]
[1724496410904,6.1936,158.94,158.88,9.80792032]
[1724496411222,6.1936,158.94,158.89,1.57573386]
[1724496411427,6.1936,158.94,158.88,9.80792032]
[1724496412111,6.1936,158.94,158.83,6.4386]
[1724496412305,6.1936,158.94,158.87,9.80792032]
[1724496412505,12.4852,158.94,158.87,9.80792032]
[1724496412727,6.1936,158.94,158.87,9.80792032]
[1724496413113,6.1936,158.94,158.88,1.25855632]
[1724496413924,6.1936,158.94,158.87,9.80792032]
[1724496414226,6.1936,158.94,158.88,0.25098]
[1724496414410,0.8537466,158.95,158.88,0.25098]
[1724496414620,0.8537466,158.95,158.89,9.80792032]
[1724496416500,0.8537466,158.95,158.88,0.25098]
[1724496416701,0.8537466,158.95,158.88,10.05890032]
[1724496418225,0.8537466,158.95,158.89,45.0]
[1724496418420,0.8537466,158.95,158.88,10.05890032]
[1724496418932,0.8537466,158.95,158.89,1.25844248]
[1724496419230,0.8537466,158.95,158.88,10.05890032]
[1724496419434,0.8537466,158.95,158.88,9.93341032]
[1724496419613,0.8537466,158.95,158.89,1.25846435]
[1724496419814,0.8537466,158.95,158.88,9.93341032]
[1724496420409,0.8537466,158.95,158.89,1.25847458]
[1724496420922,0.8537466,158.95,158.9,9.80792032]
[1724496421119,0.8537466,158.95,158.92,9.80792032]
[1724496421433,0.8537466,158.95,158.93,1.25812344]
[1724496421611,0.8537466,158.95,158.92,9.80792032]
[1724496421927,0.8537466,158.95,158.93,0.25098]
[1724496422237,0.8537466,158.95,158.93,45.25098]
[1724496422938,0.8537466,158.95,158.94,11.06585458]
[1724496423116,0.8537466,158.95,158.94,56.31683458]
[1724496424009,40.847293,159.0,158.95,23.0469]
[1724496424210,40.847293,159.0,158.98,9.80792032]
[1724496424625,40.847293,159.0,158.99,10.05890032]
[1724496424822,40.847293,159.0,158.99,9.80792032]
[1724496425042,40.847293,159.0,158.99,10.05890032]
[1724496426155,40.847293,159.0,158.96,45.0]
[1724496426318,40.847293,159.0,158.97,1.25786131]
[1724496426619,40.847293,159.0,158.95,9.80792032]
[1724496427531,40.847293,159.0,158.96,1.25792539]
[1724496427915,47.136593,159.0,158.95,9.80792032]
[1724496428121,40.847293,159.0,158.94,0.12549]
[1724496428321,40.847293,159.0,158.88,54.32358916]
[1724496428322,6.2905,158.97,158.88,54.32358916]
[1724496428558,6.2905,158.97,158.87,18.36795616]
[1724496428559,16.5556,158.99,158.9,9.80792032]
[1724496428867,5.7908,158.97,158.9,9.80792032]
[1724496430633,6.2909,158.96,158.9,9.80792032]
[1724496432525,6.2913,158.95,158.9,9.80792032]
[1724496432848,12.7366,158.95,158.9,9.80792032]
[1724496433047,12.7366,158.95,158.91,1.25847167]
[1724496433248,12.7366,158.95,158.9,9.80792032]
[1724496433435,6.2917,158.94,158.84,14.8772261]
[1724496433638,6.2921,158.93,158.88,9.80792032]
[1724496434022,6.2926,158.92,158.84,14.8772261]
[1724496434333,16.5556,158.94,158.83,16.469]
[1724496434523,16.5556,158.94,158.85,9.80792032]
[1724496434725,20.0,158.93,158.85,9.80792032]
[1724496435349,16.5556,158.94,158.89,9.80792032]
[1724496435553,22.8473,158.94,158.89,9.80792032]
[1724496439142,22.8473,158.94,158.8,54.32358916]
[1724496439352,16.5556,158.94,158.88,9.80792032]
[1724496439655,40.847293,159.0,158.92,9.80792032]
[1724496439656,16.5556,158.98,158.92,9.80792032]
[1724496439859,16.5556,158.98,158.93,1.25813723]
[1724496440061,16.5556,158.98,158.93,1.38362723]
[1724496440865,16.5556,158.98,158.93,0.12549]
[1724496441568,16.5556,158.98,158.92,9.80792032]
[1724496441749,22.8457,158.98,158.92,9.80792032]
[1724496441941,22.8457,158.98,158.9,9.80792032]
[1724496442262,6.2908,158.97,158.9,9.80792032]
[1724496442466,6.2909,158.96,158.9,9.80792032]
[1724496443946,6.2913,158.95,158.9,9.80792032]
[1724496444467,6.2913,158.95,158.88,9.80792032]
[1724496445273,16.5556,158.98,158.9,9.80792032]
[1724496445648,16.5556,158.98,158.91,1.25833608]
[1724496446047,16.5556,158.98,158.9,9.80792032]
[1724496446254,16.5556,158.98,158.91,0.12549]
[1724496446970,22.8457,158.98,158.91,0.12549]
[1724496447868,16.5556,158.98,158.91,0.12549]
[1724496449069,16.5556,158.98,158.91,1.38374043]
[1724496449251,16.5556,158.98,158.91,0.12549]
[1724496450764,22.8457,158.98,158.91,0.12549]
[1724496450957,6.2906,158.97,158.91,0.12549]
[1724496451270,6.2906,158.97,158.9,9.80792032]
[1724496452061,6.2906,158.97,158.91,1.25830804]
[1724496452874,6.2906,158.97,158.9,9.80792032]
[1724496453470,22.8457,158.98,158.9,9.80792032]
[1724496454045,22.8457,158.98,158.91,0.12549]
[1724496455983,0.68465014,158.97,158.91,0.12549]
[1724496458062,0.68465014,158.97,158.91,0.25098]
[1724496459966,0.68465014,158.97,158.92,9.80792032]
[1724496460167,0.68465014,158.97,158.91,0.25098]
[1724496460371,0.68465014,158.97,158.92,9.80792032]
[1724496460689,0.68465014,158.97,158.93,0.12549]
[1724496460987,6.12995014,158.99,158.92,9.80792032]
[1724496462774,6.12995014,158.99,158.92,13.39191027]
[1724496463785,47.136593,159.0,158.92,13.39191027]
[1724496466586,47.136593,159.0,158.92,9.80792032]
[1724496467196,47.136593,159.0,158.92,13.39216117]
[1724496469774,47.136593,159.0,158.92,9.80792032]
[1724496470193,47.136593,159.0,158.92,13.39294845]
[1724496471572,47.136593,159.0,158.93,1.57487399]
[1724496471778,47.136593,159.0,158.94,1.57487399]
[1724496471994,47.136593,159.0,158.95,1.57487399]
[1724496472195,47.136593,159.0,158.96,1.57487329]
[1724496472367,47.136593,159.0,158.92,13.39294845]
[1724496472568,47.136593,159.0,158.93,1.57488225]
[1724496472879,47.136593,159.0,158.92,9.80792032]
[1724496473193,47.136593,159.0,158.93,5.15933266]
[1724496473392,47.136593,159.0,158.94,1.57488214]
[1724496473691,47.136593,159.0,158.95,1.57488214]
[1724496473994,47.136593,159.0,158.96,1.57488214]
[1724496474181,47.136593,159.0,158.93,3.58445052]
[1724496474384,47.136593,159.0,158.94,1.57488157]
[1724496474696,40.847293,159.0,158.95,1.57488157]
[1724496474863,40.847293,159.0,158.96,1.57488157]
[1724496475067,40.847293,159.0,158.93,3.70994052]
[1724496475271,40.847293,159.0,158.94,0.12549]
[1724496475483,40.847293,159.0,158.93,45.12549]
[1724496477196,40.847293,159.0,158.93,0.12549]
[1724496477397,40.847293,159.0,158.93,3.83637871]
[1724496477801,47.136593,159.0,158.93,3.71088871]
[1724496478096,47.136593,159.0,158.93,3.58539871]
[1724496479299,47.136593,159.0,158.92,9.80792032]
[1724496479604,47.136593,159.0,158.93,3.58522988]
[1724496480500,47.136593,159.0,158.92,13.3931502]
[1724496480999,6.2898,158.99,158.92,13.3931502]
[1724496481197,6.2898,158.99,158.91,4.80423346]
[1724496481411,6.2898,158.99,158.92,8.26455706]
[1724496481583,6.2898,158.99,158.93,3.5858136]
[1724496482101,6.2898,158.99,158.93,3.5842356]
[1724496482476,47.136593,159.0,158.93,7.16871825]
[1724496482676,47.136593,159.0,158.9,24.93792032]
[1724496482893,40.847293,159.0,158.92,0.12549]
[1724496483092,40.847293,159.0,158.93,3.58369315]
[1724496483397,40.847293,159.0,158.94,3.58369315]
[1724496483579,40.847293,159.0,158.92,0.12549]
[1724496483778,40.847293,159.0,158.93,3.5833028]
[1724496484004,40.847293,159.0,158.94,3.5833028]
[1724496484204,40.847293,159.0,158.92,0.12549]
[1724496484401,40.847293,159.0,158.93,3.58329968]
[1724496484577,40.847293,159.0,158.94,3.58329968]
[1724496484777,40.847293,159.0,158.92,0.12549]
[1724496485081,40.847293,159.0,158.93,3.58327604]
[1724496485284,40.847293,159.0,158.94,3.58327604]
[1724496485491,40.847293,159.0,158.95,3.58327604]
[1724496485690,40.847293,159.0,158.92,0.12549]
[1724496485987,40.847293,159.0,158.93,3.58114979]
[1724496486196,40.847293,159.0,158.94,3.58114979]
[1724496486407,40.847293,159.0,158.95,3.58114979]
[1724496486574,40.847293,159.0,158.92,0.12549]
[1724496486781,40.847293,159.0,158.93,3.5805464]
[1724496487004,40.847293,159.0,158.9,15.13]
[1724496487200,40.847293,159.0,158.91,3.58159821]
[1724496487415,40.847293,159.0,158.92,3.58159821]
[1724496487585,40.847293,159.0,158.93,3.58159821]
[1724496487586,6.2897,158.99,158.93,3.58159821]
[1724496487900,6.2897,158.99,158.9,15.13]
[1724496488074,6.2897,158.99,158.91,3.58174144]
[1724496488494,6.2897,158.99,158.9,15.13]
[1724496489501,6.2897,158.99,158.9,24.93792032]
[1724496489885,47.136593,159.0,158.9,24.93792032]
[1724496490079,47.136593,159.0,158.91,0.12549]
[1724496491008,40.847293,159.0,158.92,9.80792032]
[1724496491707,40.847293,159.0,158.93,9.80792032]
[1724496492913,47.136693,159.0,158.93,9.80792032]
[1724496493381,40.847293,159.0,158.93,9.80792032]
[1724496498183,40.847293,159.0,158.91,0.25098]
[1724496498406,47.136993,159.0,158.91,55.05890032]
[1724496499378,47.136993,159.0,158.91,10.05890032]
[1724496500619,47.136993,159.0,158.91,9.93341032]
[1724496501116,47.136993,159.0,158.91,9.80792032]
[1724496501117,6.2898,158.99,158.91,9.80792032]
[1724496503292,40.847293,159.0,158.86,31.80950784]
[1724496503494,40.847293,159.0,158.91,9.80792032]
[1724496504116,6.2897,158.99,158.91,9.80792032]
[1724496505023,40.847293,159.0,158.91,9.80792032]
[1724496505600,47.136893,159.0,158.88,39.23168128]
[1724496505795,6.2899,158.99,158.89,0.12549]
[1724496506001,6.335,158.99,158.9,9.80792032]
[1724496506307,12.6247,158.99,158.9,9.80792032]
[1724496508120,6.2909,158.96,158.9,9.80792032]
[1724496508323,6.2901,158.98,158.87,45.25098]
[1724496508622,15.4566,158.97,158.9,9.80792032]
[1724496509821,15.4566,158.97,158.87,45.25098]
[1724496510014,15.4566,158.97,158.89,9.80792032]
[1724496510405,15.4566,158.97,158.86,29.90649066]
[1724496510406,6.291,158.96,158.86,14.87739066]
[1724496510617,21.7472,158.97,158.87,9.80792032]
[1724496510829,45.12549,158.96,158.87,9.80792032]
[1724496511499,51.41639,158.96,158.88,9.80792032]
[1724496512732,15.4566,158.97,158.88,9.80792032]
[1724496516126,15.4566,158.97,158.89,1.2584741]
[1724496516301,15.4566,158.97,158.9,9.80792032]
[1724496517412,15.4566,158.97,158.89,9.80792032]
[1724496518807,6.335,158.99,158.91,9.80792032]
[1724496519316,6.335,158.99,158.9,0.25098]
[1724496519517,22.43272032,158.99,158.9,1.25833822]
[1724496520209,16.14292032,158.99,158.89,9.80792032]
[1724496520409,16.14292032,158.99,158.9,0.12549]
[1724496520922,6.335,158.99,158.9,0.12549]
[1724496521505,6.335,158.99,158.9,45.25098]
[1724496524028,40.847293,159.0,158.91,9.80792032]
[1724496524234,40.847293,159.0,158.92,45.25098]
[1724496524834,40.847293,159.0,158.92,0.25098]
[1724496525010,40.847293,159.0,158.91,45.0]
[1724496525215,40.847293,159.0,158.91,9.80792032]
[1724496526125,47.136893,159.0,158.91,9.80792032]
[1724496526330,40.847293,159.0,158.91,9.80792032]
[1724496529443,40.847293,159.0,158.92,0.25098]
[1724496529651,40.847293,159.0,158.92,45.25098]
[1724496531741,22.6475,158.97,158.87,6.79671611]
[1724496531940,9.80792032,158.95,158.87,6.79671611]
[1724496532238,9.80792032,158.95,158.85,9.80792032]
[1724496534831,9.80792032,158.95,158.86,45.25098]
[1724496535136,6.2909,158.96,158.86,45.25098]
[1724496535137,28.938,158.97,158.87,11.38315194]
[1724496535355,38.74592032,158.97,158.88,3.08466273]
[1724496535543,38.74592032,158.97,158.89,1.57523162]
[1724496535729,38.74592032,158.97,158.9,1.57523162]
[1724496535921,38.74592032,158.97,158.91,1.57523162]
[1724496536125,38.74592032,158.97,158.92,1.57523162]
[1724496536460,38.74592032,158.97,158.88,0.25098]
[1724496536623,38.74592032,158.97,158.88,45.25098]
[1724496536826,38.74592032,158.97,158.89,1.57532676]
[1724496537035,38.74592032,158.97,158.9,1.57532676]
[1724496537250,38.74592032,158.97,158.88,45.25098]
[1724496538249,32.45542032,158.97,158.88,45.25098]
[1724496539147,38.74592032,158.97,158.88,45.25098]
[1724496540134,28.938,158.97,158.88,45.25098]
[1724496542754,9.80792032,158.96,158.88,45.25098]
[1724496544039,16.09882032,158.96,158.88,0.12549]
[1724496544240,16.09882032,158.96,158.87,49.92404119]
[1724496544541,6.2913,158.95,158.88,4.67306119]
[1724496544745,6.2913,158.95,158.86,15.0052]
[1724496544948,6.2913,158.95,158.87,5.93201571]
[1724496545148,6.2913,158.95,158.87,5.93202252]
[1724496545357,6.2913,158.95,158.87,4.67344377]
[1724496545951,6.2916,158.94,158.86,4.67344377]
[1724496546139,6.2916,158.94,158.86,5.93207917]
[1724496547264,16.09952032,158.94,158.86,4.67344377]
[1724496547444,16.09952032,158.94,158.85,4.67344377]
[1724496548340,24.85322032,158.92,158.85,4.67285059]
[1724496548538,6.2932,158.9,158.83,11.4695667]
[1724496548740,6.2932,158.9,158.84,3.58116874]
[1724496549261,6.2932,158.9,158.82,4.67285059]
[1724496550760,6.3771,158.91,158.82,4.67285059]
[1724496551055,6.3771,158.91,158.83,1.50984232]
[1724496551244,6.3771,158.91,158.83,0.12549]
[1724496551245,12.6699,158.91,158.83,0.12549]
[1724496551446,12.6699,158.91,158.82,4.67285059]
[1724496551650,12.6699,158.91,158.82,4.67602548]
[1724496552547,12.6699,158.91,158.83,1.25902349]
[1724496552934,6.3771,158.91,158.83,1.25902349]
[1724496555560,12.67,158.91,158.82,45.0]
[1724496555945,12.67,158.91,158.83,1.25892058]
[1724496556857,6.3771,158.91,158.83,1.25892058]
[1724496557040,6.3771,158.91,158.82,45.0]
[1724496557968,6.3771,158.91,158.83,11.06684027]
[1724496558466,6.3771,158.91,158.83,9.80792032]
[1724496559580,6.3771,158.91,158.82,45.0]
[1724496559753,6.3771,158.91,158.83,9.80792032]
[1724496562257,6.3771,158.91,158.82,45.0]
[1724496562457,6.3771,158.91,158.82,54.80792032]
[1724496566870,16.18502032,158.91,158.82,54.80792032]
[1724496567077,16.18502032,158.91,158.82,9.80792032]
[1724496567372,22.47792032,158.91,158.81,0.12549]
[1724496567577,22.47792032,158.91,158.81,55.05890032]
[1724496567873,22.47792032,158.91,158.82,4.67278925]
[1724496570352,22.47792032,158.91,158.81,45.25098]
[1724496570562,16.3875,158.9,158.8,45.0]
[1724496570771,9.80792032,158.89,158.8,9.80792032]
[1724496570953,6.3311,158.87,158.79,6.79671611]
[1724496571272,6.3311,158.87,158.79,9.80792032]
[1724496571496,6.3311,158.87,158.76,6.79671611]
[1724496571771,16.3875,158.86,158.77,17.95216026]
[1724496574064,16.3875,158.86,158.79,9.80792032]
[1724496574673,6.0474,158.85,158.76,6.79671611]
[1724496574850,6.0474,158.85,158.77,9.80792032]
[1724496575773,6.0474,158.85,158.76,6.79671611]
[1724496575981,6.0474,158.85,158.77,9.80792032]
[1724496577876,15.416,158.84,158.76,6.79671611]
[1724496579482,15.416,158.84,158.76,16.60463643]
[1724496582277,21.7116,158.84,158.76,6.79671611]
[1724496582485,21.7116,158.84,158.76,9.80792032]
[1724496592699,15.416,158.84,158.76,9.80792032]
[1724496594095,15.416,158.84,158.76,9.80792032]
[1724496595908,21.7116,158.84,158.76,9.80792032]
[1724496597297,21.7116,158.84,158.77,1.57642524]
[1724496597488,21.7116,158.84,158.78,1.57642524]
[1724496597689,21.7116,158.84,158.76,9.80792032]
[1724496597889,21.7116,158.84,158.77,1.57642524]
[1724496598097,21.7116,158.84,158.78,1.57642524]
[1724496598297,21.7116,158.84,158.76,9.80792032]
[1724496598474,21.7116,158.84,158.77,1.57642524]
[1724496598681,21.7116,158.84,158.78,1.57642524]
[1724496598887,21.7116,158.84,158.76,9.80792032]
[1724496599404,21.7116,158.84,158.77,1.57642524]
[1724496599580,21.7116,158.84,158.78,1.57642524]
[1724496599899,21.7116,158.84,158.76,9.80792032]
[1724496599900,21.7116,158.84,158.79,1.57642524]
[1724496600097,6.1414,158.81,158.77,1.57642524]
[1724496600275,6.1414,158.81,158.74,9.80792032]
[1724496600473,6.1414,158.81,158.73,6.79671611]
[1724496600474,6.1414,158.81,158.75,11.38445208]
[1724496600705,6.1414,158.81,158.76,1.57653176]
[1724496600892,6.1414,158.81,158.77,1.57653176]
[1724496601077,6.1414,158.81,158.75,9.80792032]
[1724496601279,6.1414,158.81,158.76,1.57655845]
[1724496601523,6.1414,158.81,158.77,1.57655845]
[1724496601705,6.1414,158.81,158.75,9.80792032]
[1724496602088,6.1414,158.81,158.76,1.57656673]
[1724496602282,6.1414,158.81,158.77,1.57656673]
[1724496602600,6.1414,158.81,158.75,9.80792032]
[1724496602808,15.6781,158.8,158.76,1.57654918]
[1724496603108,15.6781,158.8,158.77,1.57654918]